fUSD/lending_fUSD_20251222
["ID","MTS","AMOUNT","RATE_DAILY","PERIOD"]
[399513905,1766422247673,-500.0,0.00016999,2]
[399513906,1766422247683,-862.86,0.00016999,2]
[399513907,1766422247694,-500.0,0.00016999,2]
[399513908,1766422247703,-862.86,0.00016999,2]
[399513909,1766422247713,-500.0,0.00016999,2]
[399513910,1766422247722,-862.86,0.00016999,2]
[399513911,1766422247731,-518.50192951,0.00016999,2]
[399513912,1766422247740,-863.06593767,0.00016999,2]
[399513913,1766422247750,-500.0,0.00016999,2]
[399513914,1766422247759,-500.0,0.00016999,2]
[399513915,1766422247770,-500.0,0.00016999,2]
[399513916,1766422247779,-500.0,0.00016999,2]
[399513917,1766422247788,-500.0,0.00016999,2]
[399513918,1766422247797,-500.0,0.00016999,2]
[399513919,1766422247806,-300.0,0.00016999,2]
[399513920,1766422247815,-666.0,0.00016999,2]
[399513921,1766422247825,-300.0,0.00016999,2]
[399513922,1766422247834,-500.0,0.00016999,2]
[399513923,1766422247843,-500.0,0.00016999,2]
[399513924,1766422247852,-500.0,0.00016999,2]
[399513925,1766422247861,-500.0,0.00016999,2]
[399513926,1766422247870,-500.0,0.00016999,2]
[399513927,1766422247879,-500.0,0.00016999,2]
[399513928,1766422247888,-500.0,0.00016999,2]
[399513929,1766422247897,-500.0,0.00016999,2]
[399513930,1766422247906,-500.0,0.00016999,2]
[399513931,1766422247915,-500.0,0.00016999,2]
[399513932,1766422247924,-508.36812857,0.00016999,2]
[399513933,1766422247934,-765136.11218202,0.00017,2]
[399513934,1766422247943,-4833508.2241302,0.00017,2]
[399513935,1766422247974,-65723.03748034,0.00017,2]
[399513936,1766422247992,-16512.62240787,0.00017,2]
[399513937,1766422248009,-1419.78335473,0.00017,2]
[399513938,1766422248020,-6310.9068042,0.00017,2]
[399513939,1766422248031,-10045.45113752,0.00017,2]
[399513940,1766422248046,-1731.41031661,0.00017,2]
[399513941,1766422248072,-2384.78114555,0.00017,2]
[399513942,1766422248203,-151.0,0.00015416,2]
[399513943,1766422248216,-3887.5704476,0.00016998,2]
[399513944,1766422248226,-107315.87406856,0.00017,2]
[399513945,1766422248240,-15852.15425401,0.00017,2]
[399513946,1766422248544,-1314.0,0.00014549,2]
[399513947,1766422248555,-1046.0,0.00014578,2]
[399513948,1766422248565,-367.0,0.00014607,2]
[399513949,1766422248576,-132112.98575055,0.00017,2]
[399513950,1766422248597,-828.99939987,0.00017,2]
[399513951,1766422248610,-56909.7392349,0.00017,2]
[399513952,1766422248620,-47092.23564602,0.00017,2]
[399513953,1766422248632,-500.0,0.00017,2]
[399513955,1766422834662,-249.0,0.00012117,2]
[399513959,1766422977066,999.0,0.00013743,3]
[399513963,1766423431734,-172.22,0.00012117,2]
[399513964,1766423431745,-153.81172292,0.00013011,2]
[399513965,1766423431758,-1570.57116541,0.00013011,2]
[399513966,1766423431771,-627.03415411,0.00013011,2]
[399513967,1766423431788,-463.29380019,0.00013011,2]
[399513968,1766423431799,-703.67290495,0.000131,2]
[399513969,1766423431812,-283.32709505,0.000131,2]
[399513970,1766423431823,-56.38699403,0.00013328,2]
[399513971,1766423431836,-1143.61300597,0.00013328,2]
[399513972,1766423431846,-195.0,0.00013329,2]
[399513973,1766423431857,-300.0,0.00013329,2]
[399513974,1766423431868,-250.0,0.00013329,2]
[399513975,1766423431879,-250.0,0.00013329,2]
[399513976,1766423431889,-235.69831764,0.00013595,2]
[399513977,1766423431899,-576.16113758,0.00013596,2]
[399513978,1766423431912,-2775.90264677,0.00013596,2]
[399513979,1766423431925,-2624.7366511,0.00013596,2]
[399513980,1766423431935,-300.0,0.00013642,2]
[399513981,1766423431945,-150.0,0.00013643,2]
[399513982,1766423431955,-13202.13962251,0.00013644,2]
[399513983,1766423431967,-52674.61643562,0.00013644,2]
[399513984,1766423431979,-325.00010413,0.00013644,2]
[399513985,1766423431992,-2258.15635123,0.00013644,2]
[399513986,1766423432004,-12592.26839132,0.00013644,2]
[399513987,1766423432016,-4023.39240063,0.00013644,2]
[399513988,1766423432028,-628.42,0.00013644,2]
[399513989,1766423432044,-420.26169723,0.00013644,2]
[399513990,1766423432063,-29537.51188811,0.00013644,2]
[399513991,1766423432077,-994.12251902,0.00013644,2]
[399513996,1766423437836,-545.23634609,0.00013643,2]
[399513997,1766423437846,-119.7529778,0.00013643,2]
[399513998,1766423437858,-54.27225876,0.00013643,2]
[399513999,1766423437869,-500.19179488,0.00013643,2]
[399514000,1766423437879,-245.26180136,0.00013643,2]
[399514001,1766423437889,-500.0,0.00013643,2]
[399514002,1766423437898,-500.0,0.00013643,2]
[399514003,1766423437907,-487.3938533,0.00013643,2]
[399514004,1766423437917,-64621.19146562,0.00013644,2]
[399514005,1766423437941,-524.10720639,0.00013644,2]
[399514006,1766423437952,-342.37790389,0.00013644,2]
[399514007,1766423437964,-19336.0300496,0.00013644,2]
[399514008,1766423437979,-632.13150075,0.00013644,2]
[399514009,1766423437990,-391.40336974,0.00013644,2]
[399514046,1766423439890,-278.673149,0.00013644,2]
[399514047,1766423439902,-7927.88365874,0.00013644,2]
[399514048,1766423439913,-789290.31228647,0.00013644,2]
[399514049,1766423439922,-3182.64322739,0.00013696,2]
[399514050,1766423439931,-500.0,0.00013699,2]
[399514051,1766423439941,-500.0,0.00013699,2]
[399514052,1766423439950,-500.0,0.00013699,2]
[399514053,1766423439960,-500.0,0.00013699,2]
[399514054,1766423439969,-500.0,0.00013699,2]
[399514055,1766423439978,-295.6947038,0.00013699,2]
[399514056,1766423439988,-5492.29,0.000137,2]
[399514057,1766423439997,-5492.29,0.000137,2]
[399514058,1766423440007,-200.0,0.00013736,2]
[399514059,1766423440016,-161.08171222,0.00013736,2]
[399514060,1766423440026,-500.0,0.00013736,2]
[399514061,1766423440035,-200.0,0.00013736,2]
[399514062,1766423440045,-500.0,0.00013736,2]
[399514063,1766423440054,-500.0,0.00013736,2]
[399514064,1766423440063,-317.63682665,0.00013736,2]
[399514065,1766423440073,-151.0,0.00013736,2]
[399514066,1766423440083,-500.0,0.00013736,2]
[399514067,1766423440093,-151.0,0.00013736,2]
[399514068,1766423440103,-151.0,0.00013736,2]
[399514069,1766423440112,-151.0,0.00013736,2]
[399514070,1766423440122,-151.0,0.00013736,2]
[399514071,1766423440132,-151.0,0.00013736,2]
[399514072,1766423440141,-200.0,0.00013736,2]
[399514073,1766423440151,-151.0,0.00013736,2]
[399514074,1766423440160,-151.0,0.00013736,2]
[399514075,1766423440170,-151.0,0.00013736,2]
[399514076,1766423440179,-151.0,0.00013736,2]
[399514077,1766423440189,-151.0,0.00013736,2]
[399514078,1766423440199,-1000.0,0.00013743,2]
[399514079,1766423440209,-401.11567192,0.00013744,2]
[399514080,1766423440218,-500.0,0.00013744,2]
[399514081,1766423440227,-500.0,0.00013744,2]
[399514082,1766423440237,-500.0,0.00013744,2]
[399514083,1766423440247,-525.99859536,0.00013744,2]
[399514084,1766423440256,-500.0,0.00013744,2]
[399514085,1766423440266,-500.0,0.00013744,2]
[399514086,1766423440276,-500.0,0.00013744,2]
[399514087,1766423440285,-500.0,0.00013744,2]
[399514088,1766423440295,-1977.944,0.00013744,2]
[399514089,1766423440304,-324.701,0.00013744,2]
[399514090,1766423440314,-500.0,0.00013744,2]
[399514091,1766423440323,-500.0,0.00013744,2]
[399514092,1766423440332,-500.0,0.00013744,2]
[399514093,1766423440342,-500.0,0.00013744,2]
[399514094,1766423440351,-500.0,0.00013744,2]
[399514095,1766423440360,-500.0,0.00013744,2]
[399514096,1766423440370,-500.0,0.00013744,2]
[399514097,1766423440379,-500.0,0.00013744,2]
[399514098,1766423440389,-500.0,0.00013744,2]
[399514099,1766423440398,-500.0,0.00013744,2]
[399514100,1766423440408,-150.0,0.00013744,2]
[399514101,1766423440418,-500.0,0.00013744,2]
[399514102,1766423440429,-500.0,0.00013744,2]
[399514104,1766423440439,-500.0,0.00013744,2]
[399514105,1766423440453,-500.0,0.00013744,2]
[399514106,1766423440464,-558.96,0.00013744,2]
[399514107,1766423440474,-558.96,0.00013744,2]
[399514108,1766423440483,-558.96,0.00013744,2]
[399514109,1766423440493,-558.96,0.00013744,2]
[399514110,1766423440502,-500.0,0.00013744,2]
[399514111,1766423440511,-500.0,0.00013744,2]
[399514112,1766423440522,-500.0,0.00013744,2]
[399514113,1766423440536,-500.0,0.00013744,2]
[399514114,1766423440549,-526.61729776,0.00013744,2]
[399514115,1766423440558,-500.0,0.00013744,2]
[399514116,1766423440572,-522.94551231,0.00013744,2]
[399514117,1766423440591,-500.0,0.00013744,2]
[399514119,1766423440601,-500.0,0.00013744,2]
[399514120,1766423440611,-522.793359,0.00013744,2]
[399514121,1766423440623,-500.0,0.00013744,2]
[399514122,1766423440632,-510.86029649,0.00013744,2]
[399514123,1766423440642,-500.0,0.00013744,2]
[399514124,1766423440652,-596.20415987,0.00013744,2]
[399514125,1766423440662,-299.84255879,0.00013744,2]
[399514126,1766423440672,-269.39249738,0.00013796,2]
[399514127,1766423440681,-500.0,0.00013863,2]
[399514128,1766423440691,-5976.80043539,0.00013963,2]
[399514129,1766423440700,-3182.64322733,0.00014052,2]
[399514130,1766423440711,-287.0,0.00014198,2]
[399514131,1766423440720,-200.0,0.00014284,2]
[399514132,1766423440730,-200.0,0.00014284,2]
[399514133,1766423440739,-500.0,0.00014284,2]
[399514134,1766423440749,-204.0,0.00014289,2]
[399514135,1766423440758,-500.0,0.000143,2]
[399514136,1766423440767,-500.0,0.000143,2]
[399514137,1766423440777,-500.0,0.000143,2]
[399514138,1766423440787,-168.65037374,0.000143,2]
[399514139,1766423440798,-500.0,0.000143,2]
[399514140,1766423440809,-500.0,0.000143,2]
[399514141,1766423440818,-500.0,0.000143,2]
[399514142,1766423440827,-5976.80043539,0.0001433,2]
[399514143,1766423440924,-458.0,0.00014345,2]
[399514144,1766423440934,-500.0,0.00014356,2]
[399514145,1766423440942,-166.66,0.00014389,2]
[399514146,1766423440951,-3182.64322733,0.00014408,2]
[399514147,1766423440961,-367.0,0.00014424,2]
[399514148,1766423440970,-243.0,0.00014453,2]
[399514149,1766423440979,-1630.0,0.00014479,2]
[399514150,1766423440988,-227.0,0.00014481,2]
[399514151,1766423440997,-1411.0,0.00014508,2]
[399514152,1766423441006,-189.16,0.00014508,2]
[399514153,1766423441015,-1852.42,0.00014658,2]
[399514154,1766423441024,-1680.0,0.00014661,2]
[399514155,1766423441033,-166.66,0.00014692,2]
[399514156,1766423441042,-5976.80043539,0.00014697,2]
[399514157,1766423441051,-255.0,0.00014762,2]
[399514158,1766423441060,-3182.64322733,0.00014764,2]
[399514159,1766423441069,-279.1,0.00014784,2]
[399514160,1766423441078,-2163.04,0.00014784,2]
[399514161,1766423441087,-10376.86,0.0001479,2]
[399514162,1766423441097,-200.0,0.00014832,2]
[399514163,1766423441106,-200.0,0.00014832,2]
[399514164,1766423441116,-500.0,0.00014832,2]
[399514165,1766423441125,-1000.0,0.00014844,2]
[399514166,1766423441134,-1000.0,0.00014848,2]
[399514167,1766423441143,-1000.0,0.00014848,2]
[399514168,1766423441152,-420.0,0.00014951,2]
[399514169,1766423441162,-9650.27,0.00014979,2]
[399514170,1766423441171,-235.69831763,0.00014985,2]
[399514171,1766423441181,-166.66,0.00014995,2]
[399514172,1766423441194,-5976.80043539,0.00015064,2]
[399514173,1766423441203,-3182.64322733,0.0001512,2]
[399514174,1766423441213,-500.0,0.00015123,2]
[399514175,1766423441222,-166.66,0.00015147,2]
[399514176,1766423441231,-500.0,0.00015152,2]
[399514177,1766423441241,-500.0,0.00015152,2]
[399514178,1766423441250,-500.0,0.00015152,2]
[399514179,1766423441259,-181.4273766,0.00015152,2]
[399514180,1766423441269,-500.0,0.00015152,2]
[399514181,1766423441278,-500.0,0.00015152,2]
[399514182,1766423441287,-500.0,0.00015152,2]
[399514183,1766423441297,-530.17558407,0.00015152,2]
[399514184,1766423441307,-500.0,0.00015152,2]
[399514185,1766423441316,-500.0,0.00015152,2]
[399514186,1766423441326,-500.0,0.00015152,2]
[399514187,1766423441335,-500.0,0.00015152,2]
[399514188,1766423441345,-683.1,0.00015152,2]
[399514189,1766423441354,-683.1,0.00015152,2]
[399514190,1766423441363,-683.1,0.00015152,2]
[399514191,1766423441372,-683.1,0.00015152,2]
[399514192,1766423441382,-683.1,0.00015152,2]
[399514193,1766423441395,-500.0,0.00015152,2]
[399514194,1766423441404,-500.0,0.00015152,2]
[399514195,1766423441413,-500.0,0.00015152,2]
[399514196,1766423441422,-240.54492711,0.00015152,2]
[399514197,1766423441432,-500.0,0.00015152,2]
[399514198,1766423441441,-168.77155811,0.00015152,2]
[399514199,1766423441453,-500.0,0.00015152,2]
[399514200,1766423441462,-500.0,0.00015152,2]
[399514201,1766423441472,-500.0,0.00015152,2]
[399514202,1766423441480,-500.0,0.00015152,2]
[399514203,1766423441490,-500.0,0.00015152,2]
[399514204,1766423441499,-500.0,0.00015152,2]
[399514205,1766423441509,-500.0,0.00015152,2]
[399514206,1766423441518,-502.20097249,0.00015152,2]
[399514207,1766423441527,-500.0,0.00015152,2]
[399514208,1766423441537,-500.0,0.00015152,2]
[399514209,1766423441550,-500.0,0.00015152,2]
[399514210,1766423441559,-500.0,0.00015152,2]
[399514211,1766423441568,-500.0,0.00015152,2]
[399514212,1766423441576,-500.0,0.00015152,2]
[399514213,1766423441588,-500.0,0.00015152,2]
[399514214,1766423441600,-500.0,0.00015152,2]
[399514215,1766423441609,-500.0,0.00015152,2]
[399514216,1766423441619,-500.0,0.00015152,2]
[399514217,1766423441629,-500.0,0.00015193,2]
[399514218,1766423441638,-151.0,0.00015241,2]
[399514219,1766423441647,-250.0,0.00015241,2]
[399514220,1766423441656,-250.0,0.00015241,2]
[399514221,1766423441666,-209.40437684,0.00015241,2]
[399514222,1766423441675,-250.0,0.00015241,2]
[399514223,1766423441684,-250.0,0.00015241,2]
[399514224,1766423441693,-151.0,0.00015241,2]
[399514225,1766423441704,-250.0,0.00015241,2]
[399514226,1766423441713,-250.0,0.00015241,2]
[399514227,1766423441722,-250.0,0.00015241,2]
[399514228,1766423441733,-500.0,0.00015241,2]
[399514229,1766423441742,-250.0,0.00015241,2]
[399514230,1766423441751,-500.0,0.00015241,2]
[399514231,1766423441760,-250.0,0.00015241,2]
[399514232,1766423441770,-500.0,0.00015241,2]
[399514233,1766423441779,-250.0,0.00015241,2]
[399514234,1766423441791,-500.0,0.00015241,2]
[399514235,1766423441801,-250.0,0.00015241,2]
[399514236,1766423441810,-500.0,0.00015241,2]
[399514237,1766423441819,-500.0,0.00015241,2]
[399514238,1766423441828,-500.0,0.00015241,2]
[399514239,1766423441837,-500.0,0.00015241,2]
[399514240,1766423441846,-500.0,0.00015241,2]
[399514241,1766423441856,-250.0,0.00015241,2]
[399514242,1766423441865,-322.6107,0.00015241,2]
[399514243,1766423441874,-500.0,0.00015241,2]
[399514244,1766423441883,-250.0,0.00015241,2]
[399514245,1766423441892,-500.0,0.00015241,2]
[399514246,1766423441902,-250.0,0.00015241,2]
[399514247,1766423441911,-500.0,0.00015241,2]
[399514248,1766423441921,-500.0,0.00015241,2]
[399514249,1766423441929,-250.0,0.00015241,2]
[399514250,1766423441938,-505.29521909,0.00015241,2]
[399514251,1766423441949,-500.0,0.00015241,2]
[399514252,1766423441958,-250.0,0.00015241,2]
[399514253,1766423441967,-500.0,0.00015241,2]
[399514254,1766423441977,-250.0,0.00015241,2]
[399514255,1766423441989,-500.0,0.00015241,2]
[399514256,1766423441998,-250.0,0.00015241,2]
[399514257,1766423442008,-500.0,0.00015241,2]
[399514258,1766423442017,-574.12855637,0.00015241,2]
[399514259,1766423442027,-250.0,0.00015241,2]
[399514260,1766423442037,-500.0,0.00015241,2]
[399514261,1766423442047,-500.0,0.00015241,2]
[399514262,1766423442058,-829.83488905,0.00015241,2]
[399514263,1766423442069,-250.0,0.00015241,2]
[399514264,1766423442079,-500.0,0.00015241,2]
[399514265,1766423442089,-250.0,0.00015241,2]
[399514266,1766423442098,-500.0,0.00015241,2]
[399514267,1766423442108,-250.0,0.00015241,2]
[399514268,1766423442118,-500.0,0.00015241,2]
[399514269,1766423442127,-500.0,0.00015241,2]
[399514270,1766423442143,-500.0,0.00015241,2]
[399514271,1766423442153,-500.0,0.00015241,2]
[399514272,1766423442163,-500.0,0.00015241,2]
[399514273,1766423442172,-200.0,0.00015241,2]
[399514274,1766423442182,-500.0,0.00015241,2]
[399514275,1766423442191,-207.4,0.00015241,2]
[399514276,1766423442201,-250.0,0.00015241,2]
[399514277,1766423442210,-500.0,0.00015241,2]
[399514278,1766423442221,-304.18804284,0.00015241,2]
[399514279,1766423442231,-250.0,0.00015241,2]
[399514280,1766423442240,-500.0,0.00015241,2]
[399514281,1766423442254,-250.0,0.00015241,2]
[399514282,1766423442272,-500.0,0.00015241,2]
[399514283,1766423442284,-500.0,0.00015241,2]
[399514284,1766423442294,-250.0,0.00015241,2]
[399514285,1766423442303,-250.0,0.00015241,2]
[399514286,1766423442312,-500.0,0.00015241,2]
[399514287,1766423442322,-250.0,0.00015241,2]
[399514288,1766423442332,-500.0,0.00015241,2]
[399514289,1766423442341,-500.0,0.00015241,2]
[399514290,1766423442351,-250.0,0.00015241,2]
[399514291,1766423442360,-250.0,0.00015241,2]
[399514292,1766423442369,-250.0,0.00015241,2]
[399514293,1766423442384,-250.0,0.00015241,2]
[399514294,1766423442399,-250.0,0.00015241,2]
[399514295,1766423442408,-620.0,0.00015241,2]
[399514296,1766423442417,-12010.0,0.00015272,2]
[399514297,1766423442427,-166.66,0.00015298,2]
[399514298,1766423442436,-150.99,0.0001531,2]
[399514299,1766423442446,-1873.72,0.0001531,2]
[399514300,1766423442457,-299.99,0.0001531,2]
[399514301,1766423442467,-200.0,0.0001538,2]
[399514302,1766423442477,-200.0,0.0001538,2]
[399514303,1766423442487,-500.0,0.0001538,2]
[399514304,1766423442496,-500.0,0.00015396,2]
[399514305,1766423442505,-1580.20183557,0.00015396,2]
[399514306,1766423442514,-150.0,0.00015417,2]
[399514307,1766423442524,-5976.80043539,0.00015432,2]
[399514308,1766423442533,-3182.64322733,0.00015476,2]
[399514309,1766423442543,-307.49673677,0.00015493,2]
[399514310,1766423442556,-500.0,0.00015493,2]
[399514311,1766423442565,-166.66,0.00015601,2]
[399514312,1766423442574,-217.15233878,0.00015789,2]
[399514313,1766423442584,-595.37131296,0.00015789,2]
[399514315,1766423442596,-3182.64322733,0.00015832,2]
[399514317,1766423442605,-166.66,0.00015904,2]
[399514318,1766423442615,-200.0,0.00015928,2]
[399514319,1766423442624,-200.0,0.00015928,2]
[399514320,1766423442634,-500.0,0.00015928,2]
[399514321,1766423442643,-433.0,0.00015976,2]
[399514322,1766423442652,-166.66,0.0001598,2]
[399514323,1766423442661,-250.0,0.00016011,2]
[399514324,1766423442671,-4362.19,0.00016116,2]
[399514325,1766423442680,-2351.0,0.00016127,2]
[399514326,1766423442689,-3182.64322733,0.00016188,2]
[399514327,1766423442699,-500.0,0.00016247,2]
[399514328,1766423442708,-881.09,0.00016265,2]
[399514329,1766423442717,-273.54560927,0.00016314,2]
[399514330,1766423442727,-612.0,0.00016324,2]
[399514331,1766423442737,-518.0,0.00016324,2]
[399514332,1766423442746,-1262.0,0.00016324,2]
[399514333,1766423442755,-6530.0,0.00016324,2]
[399514335,1766423442764,-564.0,0.00016324,2]
[399514337,1766423442773,-2429.0,0.00016324,2]
[399514339,1766423442784,-225.18697532,0.00016337,2]
[399514341,1766423442794,-617.40005154,0.00016337,2]
[399514343,1766423442803,-10000.0,0.00016338,2]
[399514346,1766423442812,-235.69831763,0.00016375,2]
[399514349,1766423442821,-493.0,0.0001638,2]
[399514352,1766423442831,-587.0,0.00016386,2]
[399514354,1766423442841,-500.0,0.00016437,2]
[399514357,1766423442850,-1689.8,0.00016438,2]
[399514360,1766423442859,-500.0,0.00016438,2]
[399514363,1766423442868,-500.0,0.00016438,2]
[399514366,1766423442878,-500.0,0.00016438,2]
[399514369,1766423442887,-500.0,0.00016438,2]
[399514372,1766423442896,-1129.63796966,0.00016438,2]
[399514373,1766423442906,-1129.63796966,0.00016438,2]
[399514375,1766423442915,-1129.63796966,0.00016438,2]
[399514376,1766423442923,-1129.63796966,0.00016438,2]
[399514377,1766423442935,-1129.63796966,0.00016438,2]
[399514379,1766423442945,-1129.63796966,0.00016438,2]
[399514381,1766423442953,-1129.63796966,0.00016438,2]
[399514383,1766423442963,-1129.63796966,0.00016438,2]
[399514384,1766423442972,-1129.63796966,0.00016438,2]
[399514385,1766423442981,-1129.63796966,0.00016438,2]
[399514386,1766423442991,-1129.63796966,0.00016438,2]
[399514387,1766423443001,-1129.63796966,0.00016438,2]
[399514388,1766423443012,-1129.63796966,0.00016438,2]
[399514389,1766423443022,-1129.63796966,0.00016438,2]
[399514390,1766423443032,-1129.63796966,0.00016438,2]
[399514391,1766423443041,-1129.63796966,0.00016438,2]
[399514392,1766423443051,-1129.63796966,0.00016438,2]
[399514393,1766423443061,-1129.63796966,0.00016438,2]
[399514394,1766423443071,-1129.63796966,0.00016438,2]
[399514395,1766423443081,-1129.63796966,0.00016438,2]
[399514396,1766423443090,-1129.63796966,0.00016438,2]
[399514397,1766423443100,-1129.63796966,0.00016438,2]
[399514398,1766423443109,-1129.63796966,0.00016438,2]
[399514399,1766423443118,-1129.63796966,0.00016438,2]
[399514400,1766423443128,-1129.63796966,0.00016438,2]
[399514401,1766423443137,-1129.63796966,0.00016438,2]
[399514402,1766423443146,-1129.63796966,0.00016438,2]
[399514403,1766423443156,-1129.63796966,0.00016438,2]
[399514404,1766423443165,-1129.63796966,0.00016438,2]
[399514405,1766423443174,-1129.63796966,0.00016438,2]
[399514406,1766423443184,-1129.63796966,0.00016438,2]
[399514407,1766423443193,-1129.63796966,0.00016438,2]
[399514408,1766423443203,-1129.63796966,0.00016438,2]
[399514409,1766423443213,-1129.63796966,0.00016438,2]
[399514410,1766423443222,-1129.63796966,0.00016438,2]
[399514411,1766423443231,-1129.63796966,0.00016438,2]
[399514412,1766423443241,-1129.63796966,0.00016438,2]
[399514413,1766423443250,-1129.63796966,0.00016438,2]
[399514414,1766423443260,-1129.63796966,0.00016438,2]
[399514415,1766423443270,-1129.63796966,0.00016438,2]
[399514416,1766423443281,-1129.63796966,0.00016438,2]
[399514417,1766423443291,-1129.63796966,0.00016438,2]
[399514418,1766423443301,-1129.63796966,0.00016438,2]
[399514419,1766423443314,-1129.63796966,0.00016438,2]
[399514420,1766423443324,-1129.63796966,0.00016438,2]
[399514421,1766423443335,-1129.63796966,0.00016438,2]
[399514422,1766423443345,-1129.63796966,0.00016438,2]
[399514423,1766423443355,-1129.63796966,0.00016438,2]
[399514424,1766423443364,-1129.63796966,0.00016438,2]
[399514425,1766423443374,-1129.63796966,0.00016438,2]
[399514426,1766423443384,-1129.63796966,0.00016438,2]
[399514428,1766423443394,-1129.63796966,0.00016438,2]
[399514429,1766423443403,-1129.63796966,0.00016438,2]
[399514430,1766423443412,-1129.63796966,0.00016438,2]
[399514431,1766423443422,-1129.63796966,0.00016438,2]
[399514432,1766423443431,-1129.63796966,0.00016438,2]
[399514433,1766423443441,-1129.63796966,0.00016438,2]
[399514434,1766423443450,-1129.63796966,0.00016438,2]
[399514435,1766423443460,-1129.63796966,0.00016438,2]
[399514436,1766423443470,-1129.63796966,0.00016438,2]
[399514437,1766423443479,-1129.63796966,0.00016438,2]
[399514438,1766423443489,-1129.63796966,0.00016438,2]
[399514439,1766423443501,-600.0,0.00016438,2]
[399514440,1766423443510,-800.0,0.00016438,2]
[399514441,1766423443519,-151.61536568,0.00016445,2]
[399514442,1766423443530,-150.271,0.00016446,2]
[399514443,1766423443540,-150.0,0.00016446,2]
[399514444,1766423443553,-1326.0,0.00016446,2]
[399514445,1766423443563,-1609.0,0.00016446,2]
[399514446,1766423443572,-3457.0,0.00016446,2]
[399514447,1766423443583,-207.4,0.00016475,2]
[399514448,1766423443592,-200.0,0.00016476,2]
[399514449,1766423443602,-200.0,0.00016476,2]
[399514450,1766423443613,-500.0,0.00016476,2]
[399514451,1766423443624,-269.39249734,0.0001648,2]
[399514452,1766423443633,-683.1,0.00016487,2]
[399514453,1766423443643,-500.0,0.00016487,2]
[399514454,1766423443652,-500.0,0.00016493,2]
[399514455,1766423443661,-3182.64322733,0.00016544,2]
[399514456,1766423443670,-493.0,0.00016589,2]
[399514457,1766423443679,-334.5472959,0.0001661,2]
[399514458,1766423443688,-152.0,0.00016642,2]
[399514459,1766423443697,-153.0,0.00016642,2]
[399514460,1766423443706,-152.0,0.00016642,2]
[399514461,1766423443716,-153.0,0.00016642,2]
[399514462,1766423443725,-154.0,0.00016642,2]
[399514463,1766423443734,-154.0,0.00016642,2]
[399514464,1766423443743,-154.0,0.00016642,2]
[399514465,1766423443752,-154.0,0.00016642,2]
[399514466,1766423443762,-154.0,0.00016642,2]
[399514467,1766423443771,-500.0,0.00016659,2]
[399514468,1766423443780,-15777.13013271,0.0001666,2]
[399514469,1766423443790,-493.0,0.00016691,2]
[399514470,1766423443800,-500.0,0.00016698,2]
[399514471,1766423443809,-1000.0,0.00016699,2]
[399514472,1766423443819,-1689.8,0.00016712,2]
[399514473,1766423443827,-166.66,0.00016814,2]
[399514474,1766423443835,-493.0,0.00016835,2]
[399514475,1766423443843,-200.0,0.00016864,2]
[399514476,1766423443852,-233.51889341,0.00016885,2]
[399514477,1766423443861,-640.24385345,0.00016885,2]
[399514478,1766423443871,-25000.0,0.00016891,3]
[399514479,1766423443881,-500.0,0.00016899,2]
[399514480,1766423443890,-683.1,0.00016899,2]
[399514481,1766423443899,-1177.65810365,0.00016899,5]
[399514482,1766423443908,-500.0,0.00016899,2]
[399514483,1766423443917,-2772.25381902,0.000169,2]
[399514484,1766423443927,-25000.0,0.000169,3]